[Event "*** Titled Tuesday Blitz"]
[Site "Chess.com"]
[Date "2020.05.05"]
[Round "10"]
[White "bolence16"]
[Black "Kotofeyca"]
[Result "0-1"]
[WhiteElo "2158"]
[BlackElo "2413"]
[TimeControl "180+1"]
[EndTime "12:00:02 PDT"]
[Termination "Kotofeyca won by resignation"]

1. e4 {[%clk 0:03:00.9]} 1... c5 {[%clk 0:02:59.4]} 2. Nf3 {[%clk 0:03:01.3]}
2... d6 {[%clk 0:02:59.5]} 3. b4 {[%clk 0:03:01.3]} 3... cxb4 {[%clk 0:02:58.1]}
4. d4 {[%clk 0:03:01.7]} 4... Nf6 {[%clk 0:02:58]} 5. Bd3 {[%clk 0:03:02]} 5...
Bg4 {[%clk 0:02:56.3]} 6. O-O {[%clk 0:02:57.8]} 6... e6 {[%clk 0:02:56.3]} 7.
a3 {[%clk 0:02:57.7]} 7... d5 {[%clk 0:02:55.7]} 8. e5 {[%clk 0:02:55.3]} 8...
Ne4 {[%clk 0:02:55.7]} 9. Nbd2 {[%clk 0:02:55.6]} 9... Nxd2 {[%clk 0:02:43.9]}
10. Qxd2 {[%clk 0:02:51.7]} 10... Bxf3 {[%clk 0:02:43.2]} 11. gxf3 {[%clk
0:02:50.6]} 11... Nc6 {[%clk 0:02:43]} 12. axb4 {[%clk 0:02:45.7]} 12... Bxb4
{[%clk 0:02:33.3]} 13. c3 {[%clk 0:02:39.2]} 13... Be7 {[%clk 0:02:33.1]} 14.
Ba3 {[%clk 0:02:18.9]} 14... O-O {[%clk 0:02:27.7]} 15. Rfb1 {[%clk 0:02:17.9]}
15... b6 {[%clk 0:02:18.5]} 16. Ba6 {[%clk 0:02:00]} 16... Bxa3 {[%clk
0:02:13.6]} 17. Rxa3 {[%clk 0:01:58.8]} 17... Na5 {[%clk 0:02:13.5]} 18. Qe2
{[%clk 0:01:46.7]} 18... Qg5+ {[%clk 0:01:55.7]} 19. Kh1 {[%clk 0:01:46.3]}
19... Qf4 {[%clk 0:01:51.5]} 20. Qe3 {[%clk 0:01:17.4]} 20... Qf5 {[%clk
0:01:47.1]} 21. Bd3 {[%clk 0:01:12.3]} 21... Qh5 {[%clk 0:01:42.4]} 22. f4
{[%clk 0:01:07.6]} 22... Rac8 {[%clk 0:01:37.5]} 23. Rg1 {[%clk 0:00:54.8]}
23... f5 {[%clk 0:01:28.8]} 24. exf6 {[%clk 0:00:50.7]} 24... Rxf6 {[%clk
0:01:28.1]} 25. Rg5 {[%clk 0:00:43.4]} 25... Qd1+ {[%clk 0:01:23.8]} 26. Kg2
{[%clk 0:00:43]} 26... Rcf8 {[%clk 0:01:17.7]} 27. Qg3 {[%clk 0:00:36.7]} 27...
R8f7 {[%clk 0:01:00.8]} 28. Ra2 {[%clk 0:00:30.7]} 28... Rxf4 {[%clk 0:00:58.2]}
29. Qh3 {[%clk 0:00:25.7]} 29... g6 {[%clk 0:00:35.6]} 30. Re2 {[%clk
0:00:25.1]} 30... Rf3 {[%clk 0:00:23.8]} 31. Bxg6 {[%clk 0:00:18.2]} 31... Rxh3
{[%clk 0:00:13.8]} 32. Bc2+ {[%clk 0:00:18]} 32... Rg7 {[%clk 0:00:10.8]} 33.
Rxg7+ {[%clk 0:00:18.2]} 33... Kxg7 {[%clk 0:00:11.7]} 34. Bxd1 {[%clk
0:00:18.9]} 34... Rxc3 {[%clk 0:00:11.5]} 35. Rxe6 {[%clk 0:00:18.8]} 35... Rc7
{[%clk 0:00:10.5]} 36. Bf3 {[%clk 0:00:18.2]} 36... Rd7 {[%clk 0:00:09.7]} 37.
Re5 {[%clk 0:00:18.6]} 37... Nb3 {[%clk 0:00:09.5]} 38. Bxd5 {[%clk 0:00:18.4]}
38... Nxd4 {[%clk 0:00:09.3]} 39. Be4 {[%clk 0:00:18.8]} 39... Kf6 {[%clk
0:00:07.8]} 40. Re8 {[%clk 0:00:18.8]} 40... Ne6 {[%clk 0:00:06.9]} 41. Ra8
{[%clk 0:00:17.8]} 41... Nf4+ {[%clk 0:00:06.5]} 42. Kf3 {[%clk 0:00:18]} 42...
Ng6 {[%clk 0:00:06.5]} 43. Ke3 {[%clk 0:00:16.3]} 43... Ne5 {[%clk 0:00:07.4]}
44. f4 {[%clk 0:00:15.7]} 44... Nc4+ {[%clk 0:00:07.4]} 45. Kf3 {[%clk
0:00:16.1]} 45... Nd2+ {[%clk 0:00:06.6]} 46. Ke3 {[%clk 0:00:16.6]} 46... Nxe4
{[%clk 0:00:07.5]} 47. Kxe4 {[%clk 0:00:17.4]} 47... Rb7 {[%clk 0:00:07.7]} 48.
h4 {[%clk 0:00:17.7]} 48... b5 {[%clk 0:00:08.2]} 49. Kd3 {[%clk 0:00:18.2]}
49... b4 {[%clk 0:00:08.6]} 50. Kc2 {[%clk 0:00:18.5]} 50... Kf5 {[%clk
0:00:09]} 51. Rf8+ {[%clk 0:00:17.7]} 51... Kg4 {[%clk 0:00:09.4]} 52. f5 {[%clk
0:00:17.7]} 52... Kxh4 {[%clk 0:00:09.7]} 53. f6 {[%clk 0:00:18.2]} 53... Kg5
{[%clk 0:00:10.1]} 54. Kb3 {[%clk 0:00:18.3]} 54... Kg6 {[%clk 0:00:09.4]} 55.
Ka4 {[%clk 0:00:18.7]} 55... b3 {[%clk 0:00:08.9]} 56. Rg8+ {[%clk 0:00:17.9]}
56... Kxf6 {[%clk 0:00:08.6]} 57. Rg1 {[%clk 0:00:18.8]} 57... b2 {[%clk
0:00:08.5]} 58. Rb1 {[%clk 0:00:19.7]} 58... h5 {[%clk 0:00:08.7]} 59. Ka5
{[%clk 0:00:20.3]} 59... h4 {[%clk 0:00:08.9]} 60. Ka6 {[%clk 0:00:21.2]} 60...
Rb3 {[%clk 0:00:08.9]} 61. Kxa7 {[%clk 0:00:21.2]} 61... h3 {[%clk 0:00:09.5]}
62. Ka6 {[%clk 0:00:22.1]} 62... h2 {[%clk 0:00:09.7]} 63. Ka5 {[%clk 0:00:23]}
63... h1=Q {[%clk 0:00:09.9]} 64. Ka4 {[%clk 0:00:23.9]} 64... Qxb1 {[%clk
0:00:08.7]} 0-1

[Event "*** Titled Tuesday Blitz"]
[Site "Chess.com"]
[Date "2020.05.05"]
[Round "10"]
[White "Biranidun"]
[Black "Kildepiotr"]
[Result "1/2-1/2"]
[WhiteElo "2684"]
[BlackElo "2499"]
[TimeControl "180+1"]
[EndTime "12:00:04 PDT"]
[Termination "Game drawn by repetition"]

1. e4 {[%clk 0:03:00.9]} 1... g6 {[%clk 0:02:59]} 2. d4 {[%clk 0:03:00.4]} 2...
Bg7 {[%clk 0:02:59.3]} 3. Nc3 {[%clk 0:02:59]} 3... c6 {[%clk 0:02:59.6]} 4. f4
{[%clk 0:02:57.5]} 4... d5 {[%clk 0:02:59.5]} 5. e5 {[%clk 0:02:52.7]} 5... Nh6
{[%clk 0:02:59.6]} 6. Nf3 {[%clk 0:02:52.2]} 6... Bg4 {[%clk 0:02:59.2]} 7. h3
{[%clk 0:02:51.3]} 7... Bxf3 {[%clk 0:02:59]} 8. Qxf3 {[%clk 0:02:52.2]} 8...
Nf5 {[%clk 0:02:59.4]} 9. Ne2 {[%clk 0:02:52]} 9... c5 {[%clk 0:02:56.1]} 10. c3
{[%clk 0:02:52.4]} 10... cxd4 {[%clk 0:02:55]} 11. cxd4 {[%clk 0:02:48.8]} 11...
Nc6 {[%clk 0:02:54.2]} 12. Qf2 {[%clk 0:00:27.8]} 12... Qb6 {[%clk 0:02:52.9]}
13. g4 {[%clk 0:00:27.5]} 13... Nfxd4 {[%clk 0:02:40.4]} 14. Nxd4 {[%clk
0:00:27.3]} 14... Qxd4 {[%clk 0:02:26.2]} 15. Be3 {[%clk 0:00:26.6]} 15... Qb4+
{[%clk 0:02:25.6]} 16. Qd2 {[%clk 0:00:26.7]} 16... Qxd2+ {[%clk 0:02:22.4]} 17.
Kxd2 {[%clk 0:00:27.6]} 17... e6 {[%clk 0:02:21.6]} 18. Bb5 {[%clk 0:00:23.1]}
18... Kd7 {[%clk 0:02:16.3]} 19. Rhc1 {[%clk 0:00:22.6]} 19... Rhc8 {[%clk
0:02:16.1]} 20. a3 {[%clk 0:00:20.2]} 20... a6 {[%clk 0:02:14.9]} 21. Ba4 {[%clk
0:00:16.7]} 21... b5 {[%clk 0:02:13.7]} 22. Bd1 {[%clk 0:00:16.8]} 22... Na5
{[%clk 0:02:09.7]} 23. b3 {[%clk 0:00:15]} 23... Bf8 {[%clk 0:02:07.4]} 24. Bb6
{[%clk 0:00:13.8]} 24... Nc6 {[%clk 0:02:01]} 25. Be2 {[%clk 0:00:11]} 25...
Rab8 {[%clk 0:02:00.3]} 26. Bf2 {[%clk 0:00:10]} 26... Na5 {[%clk 0:02:00.2]}
27. Bd1 {[%clk 0:00:08.5]} 27... Rxc1 {[%clk 0:01:58.8]} 28. Kxc1 {[%clk
0:00:09.4]} 28... Rc8+ {[%clk 0:01:56.5]} 29. Kb2 {[%clk 0:00:09.6]} 29... Bc5
{[%clk 0:01:49.7]} 30. Bxc5 {[%clk 0:00:03.3]} 30... Rxc5 {[%clk 0:01:50.6]} 31.
Be2 {[%clk 0:00:02.3]} 31... Rc6 {[%clk 0:01:44.2]} 32. Bd3 {[%clk 0:00:02.7]}
32... Nb7 {[%clk 0:01:40.4]} 33. h4 {[%clk 0:00:02.7]} 33... Nc5 {[%clk
0:01:39.6]} 34. Bc2 {[%clk 0:00:03.2]} 34... Ke7 {[%clk 0:01:34.6]} 35. Rh1
{[%clk 0:00:02.4]} 35... Nd7 {[%clk 0:01:28.8]} 36. h5 {[%clk 0:00:02.8]} 36...
Nf8 {[%clk 0:01:23.9]} 37. g5 {[%clk 0:00:03]} 37... a5 {[%clk 0:01:21]} 38. Bd3
{[%clk 0:00:03.3]} 38... b4 {[%clk 0:01:20.7]} 39. axb4 {[%clk 0:00:03.6]} 39...
axb4 {[%clk 0:01:21.6]} 40. Ra1 {[%clk 0:00:02.9]} 40... Rc7 {[%clk 0:01:18]}
41. Ra4 {[%clk 0:00:02.4]} 41... Rb7 {[%clk 0:01:15.6]} 42. h6 {[%clk
0:00:02.8]} 42... Nd7 {[%clk 0:01:14.2]} 43. Ra8 {[%clk 0:00:03.4]} 43... Nb8
{[%clk 0:01:10.8]} 44. Kc2 {[%clk 0:00:03.5]} 44... Kd7 {[%clk 0:01:09]} 45. Kd2
{[%clk 0:00:03.4]} 45... Kc7 {[%clk 0:01:08.6]} 46. Ke3 {[%clk 0:00:04.1]} 46...
Rb6 {[%clk 0:01:04.5]} 47. Ra7+ {[%clk 0:00:04.1]} 47... Rb7 {[%clk 0:01:03.7]}
48. Ra8 {[%clk 0:00:04.7]} 48... Kb6 {[%clk 0:01:01.8]} 49. Ra4 {[%clk
0:00:03.6]} 49... Nc6 {[%clk 0:00:58.6]} 50. Ra6+ {[%clk 0:00:02.9]} 50... Kc7
{[%clk 0:00:58.7]} 51. Ra8 {[%clk 0:00:03.7]} 51... Rb8 {[%clk 0:00:58.8]} 52.
Ra6 {[%clk 0:00:04]} 52... Kb7 {[%clk 0:00:53.4]} 53. Ra4 {[%clk 0:00:04.3]}
53... Ra8 {[%clk 0:00:51.7]} 54. Rxa8 {[%clk 0:00:03.3]} 54... Kxa8 {[%clk
0:00:52.6]} 55. Bb5 {[%clk 0:00:04.1]} 55... Kb7 {[%clk 0:00:52.7]} 56. Bxc6+
{[%clk 0:00:02.4]} 56... Kxc6 {[%clk 0:00:52.9]} 57. Kd4 {[%clk 0:00:03.3]}
57... Kb5 {[%clk 0:00:52.9]} 58. Ke3 {[%clk 0:00:02.4]} 58... Kc5 {[%clk
0:00:50.3]} 59. Kd3 {[%clk 0:00:03.3]} 59... Kc6 {[%clk 0:00:50]} 60. Kd4 {[%clk
0:00:03.7]} 60... Kb6 {[%clk 0:00:49.8]} 61. Kd3 {[%clk 0:00:04.6]} 61... Kc5
{[%clk 0:00:49.6]} 62. Ke3 {[%clk 0:00:05.1]} 62... Kb5 {[%clk 0:00:46.5]} 63.
Kd4 {[%clk 0:00:05.1]} 63... Kc6 {[%clk 0:00:46.7]} 64. Kd3 {[%clk 0:00:05.4]}
64... Kc5 {[%clk 0:00:46.4]} 65. Ke3 {[%clk 0:00:05.4]} 65... Kb5 {[%clk
0:00:45]} 66. Kd4 {[%clk 0:00:05.6]} 66... Kc6 {[%clk 0:00:45.2]} 67. Ke3 {[%clk
0:00:05.9]} 67... Kc5 {[%clk 0:00:45.6]} 68. Kd3 {[%clk 0:00:06.3]} 68... Kc6
{[%clk 0:00:40.1]} 69. Kd4 {[%clk 0:00:06.5]} 1/2-1/2

[Event "*** Titled Tuesday Blitz"]
[Site "Chess.com"]
[Date "2020.05.05"]
[Round "10"]
[White "grunbergmihai"]
[Black "Juanovic"]
[Result "1-0"]
[WhiteElo "2390"]
[BlackElo "2194"]
[TimeControl "180+1"]
[EndTime "12:00:05 PDT"]
[Termination "grunbergmihai won by resignation"]

1. Nf3 {[%clk 0:02:57.3]} 1... d5 {[%clk 0:02:58]} 2. c4 {[%clk 0:02:57.3]} 2...
c6 {[%clk 0:02:58.1]} 3. g3 {[%clk 0:02:55.2]} 3... Nf6 {[%clk 0:02:58.1]} 4.
Bg2 {[%clk 0:02:55]} 4... g6 {[%clk 0:02:57.6]} 5. O-O {[%clk 0:02:54.4]} 5...
Bg7 {[%clk 0:02:57.9]} 6. d4 {[%clk 0:02:54.4]} 6... O-O {[%clk 0:02:58]} 7. Qb3
{[%clk 0:02:51.6]} 7... dxc4 {[%clk 0:02:42.3]} 8. Qxc4 {[%clk 0:02:47.8]} 8...
Be6 {[%clk 0:02:42.3]} 9. Qd3 {[%clk 0:02:33]} 9... Bf5 {[%clk 0:02:41.7]} 10.
Qd1 {[%clk 0:02:29.6]} 10... Nbd7 {[%clk 0:02:32]} 11. Nc3 {[%clk 0:02:25.2]}
11... Ne4 {[%clk 0:02:31]} 12. Bf4 {[%clk 0:02:13.1]} 12... h6 {[%clk
0:02:22.9]} 13. Qb3 {[%clk 0:02:09.2]} 13... Qb6 {[%clk 0:02:17.2]} 14. Qxb6
{[%clk 0:02:07.3]} 14... Nxb6 {[%clk 0:02:17.4]} 15. Ne5 {[%clk 0:02:06.1]}
15... Nxc3 {[%clk 0:02:02.1]} 16. bxc3 {[%clk 0:02:06]} 16... g5 {[%clk
0:02:02.6]} 17. Bd2 {[%clk 0:02:04.2]} 17... Bxe5 {[%clk 0:02:01.6]} 18. dxe5
{[%clk 0:02:04.1]} 18... Nc4 {[%clk 0:01:59.9]} 19. Bc1 {[%clk 0:02:01.1]} 19...
Nxe5 {[%clk 0:01:53]} 20. f4 {[%clk 0:01:58.9]} 20... gxf4 {[%clk 0:01:29.2]}
21. Bxf4 {[%clk 0:01:57.8]} 21... Nc4 {[%clk 0:01:12.3]} 22. Bxh6 {[%clk
0:01:56.9]} 22... Be6 {[%clk 0:01:12.9]} 23. Bxf8 {[%clk 0:01:56.2]} 23... Rxf8
{[%clk 0:01:13.5]} 24. Rad1 {[%clk 0:01:50]} 24... Ne3 {[%clk 0:01:13.1]} 25.
Rd4 {[%clk 0:01:47.2]} 25... Nxf1 {[%clk 0:01:13.3]} 26. Kxf1 {[%clk 0:01:48.1]}
26... Bxa2 {[%clk 0:01:03.9]} 27. Ra4 {[%clk 0:01:47.7]} 27... Bd5 {[%clk
0:00:55]} 28. Rxa7 {[%clk 0:01:48.6]} 28... Bxg2+ {[%clk 0:00:54.7]} 29. Kxg2
{[%clk 0:01:48.3]} 29... Rb8 {[%clk 0:00:53.7]} 30. Kf3 {[%clk 0:01:47.7]} 30...
Kg7 {[%clk 0:00:54.3]} 31. h4 {[%clk 0:01:47]} 31... b5 {[%clk 0:00:52.9]} 32.
Rxe7 {[%clk 0:01:46.1]} 32... b4 {[%clk 0:00:53.4]} 33. cxb4 {[%clk 0:01:44.4]}
33... Rxb4 {[%clk 0:00:54.3]} 34. Rc7 {[%clk 0:01:42.9]} 34... Rc4 {[%clk
0:00:54.3]} 35. g4 {[%clk 0:01:40.3]} 35... c5 {[%clk 0:00:51.1]} 36. h5 {[%clk
0:01:37.7]} 36... Kf6 {[%clk 0:00:49]} 37. e3 {[%clk 0:01:21.8]} 37... Rc1
{[%clk 0:00:38.7]} 38. Kf4 {[%clk 0:01:16]} 38... Rf1+ {[%clk 0:00:38.2]} 39.
Ke4 {[%clk 0:01:16]} 39... Kg5 {[%clk 0:00:37.9]} 40. Rxc5+ {[%clk 0:01:10.9]}
40... Kxg4 {[%clk 0:00:38.3]} 41. h6 {[%clk 0:01:06]} 41... f5+ {[%clk
0:00:28.3]} 42. Ke5 {[%clk 0:01:00.6]} 42... Rh1 {[%clk 0:00:25.9]} 43. Rc6
{[%clk 0:00:49.6]} 43... Kg5 {[%clk 0:00:24.1]} 44. Rf6 {[%clk 0:00:43.5]} 44...
Rh3 {[%clk 0:00:21]} 45. Rxf5+ {[%clk 0:00:41.7]} 45... Kxh6 {[%clk 0:00:21.4]}
46. e4 {[%clk 0:00:40.2]} 46... Kg6 {[%clk 0:00:21.8]} 47. Ke6 {[%clk 0:00:37]}
47... Ra3 {[%clk 0:00:19.6]} 48. Rf6+ {[%clk 0:00:36]} 48... Kg7 {[%clk
0:00:19.9]} 49. Rf7+ {[%clk 0:00:35.3]} 49... Kg8 {[%clk 0:00:16.9]} 50. Rd7
{[%clk 0:00:32.6]} 50... Kf8 {[%clk 0:00:15.3]} 51. Rd8+ {[%clk 0:00:31.8]}
51... Kg7 {[%clk 0:00:15.8]} 52. e5 {[%clk 0:00:31.5]} 52... Ra6+ {[%clk
0:00:13.2]} 53. Ke7 {[%clk 0:00:29.6]} 53... Ra7+ {[%clk 0:00:11]} 54. Rd7
{[%clk 0:00:29.3]} 54... Ra8 {[%clk 0:00:10.7]} 55. e6 {[%clk 0:00:28.8]} 55...
Rb8 {[%clk 0:00:10.4]} 56. Rd8 {[%clk 0:00:26.7]} 56... Rb7+ {[%clk 0:00:10.5]}
57. Rd7 {[%clk 0:00:24.5]} 57... Rb8 {[%clk 0:00:10.7]} 58. Kd6+ {[%clk
0:00:21.6]} 58... Kf8 {[%clk 0:00:10]} 59. Rf7+ {[%clk 0:00:20.9]} 59... Ke8
{[%clk 0:00:10.2]} 60. Rh7 {[%clk 0:00:20.7]} 60... Rb6+ {[%clk 0:00:10.3]} 61.
Ke5 {[%clk 0:00:20.6]} 61... Rxe6+ {[%clk 0:00:09.3]} 1-0

[Event "*** Titled Tuesday Blitz"]
[Site "Chess.com"]
[Date "2020.05.05"]
[Round "10"]
[White "TudorAnton"]
[Black "Loiacono_Antonio"]
[Result "1/2-1/2"]
[WhiteElo "2491"]
[BlackElo "2383"]
[TimeControl "180+1"]
[EndTime "12:00:07 PDT"]
[Termination "Game drawn by repetition"]

1. d4 {[%clk 0:03:00.9]} 1... d5 {[%clk 0:02:50.7]} 2. Nf3 {[%clk 0:03:00]} 2...
Nf6 {[%clk 0:02:47.6]} 3. c4 {[%clk 0:02:57.8]} 3... c6 {[%clk 0:02:44.4]} 4.
Qc2 {[%clk 0:02:57.1]} 4... dxc4 {[%clk 0:02:42.7]} 5. Qxc4 {[%clk 0:02:56]}
5... Bg4 {[%clk 0:02:42.7]} 6. Ne5 {[%clk 0:02:55]} 6... Be6 {[%clk 0:02:41.6]}
7. Qd3 {[%clk 0:02:55.1]} 7... Nbd7 {[%clk 0:02:41.7]} 8. Nxd7 {[%clk
0:02:53.7]} 8... Qxd7 {[%clk 0:02:39.7]} 9. Nc3 {[%clk 0:02:54.2]} 9... Bf5
{[%clk 0:02:34.2]} 10. e4 {[%clk 0:02:47.5]} 10... Bg6 {[%clk 0:02:32.7]} 11.
Be2 {[%clk 0:02:45.7]} 11... e6 {[%clk 0:02:30.3]} 12. O-O {[%clk 0:02:42.1]}
12... Be7 {[%clk 0:02:30.5]} 13. Rd1 {[%clk 0:02:41.2]} 13... O-O {[%clk
0:02:29.1]} 14. Be3 {[%clk 0:02:37.9]} 14... Rfd8 {[%clk 0:02:22.7]} 15. f3
{[%clk 0:02:36.8]} 15... Rac8 {[%clk 0:02:18.7]} 16. Rac1 {[%clk 0:02:35.7]}
16... c5 {[%clk 0:02:17.1]} 17. dxc5 {[%clk 0:02:35.5]} 17... Qxd3 {[%clk
0:02:16.2]} 18. Rxd3 {[%clk 0:02:35.2]} 18... Rxd3 {[%clk 0:02:15.8]} 19. Bxd3
{[%clk 0:02:36.1]} 19... Bxc5 {[%clk 0:02:15.9]} 20. Bxc5 {[%clk 0:02:35]} 20...
Rxc5 {[%clk 0:02:16.8]} 21. b4 {[%clk 0:02:33.4]} 21... Rc8 {[%clk 0:02:14.9]}
22. Kf2 {[%clk 0:02:33]} 22... Nd7 {[%clk 0:02:13.7]} 23. Ke3 {[%clk 0:02:29.9]}
23... Nb6 {[%clk 0:02:12.7]} 24. Rc2 {[%clk 0:02:27.5]} 24... a6 {[%clk
0:02:11]} 25. a4 {[%clk 0:02:22.2]} 25... f6 {[%clk 0:02:09.9]} 26. a5 {[%clk
0:02:21.1]} 26... Nd7 {[%clk 0:02:08.9]} 27. Na4 {[%clk 0:02:15]} 27... Rxc2
{[%clk 0:02:07.5]} 28. Bxc2 {[%clk 0:02:15.9]} 28... e5 {[%clk 0:01:59]} 29.
Bb3+ {[%clk 0:02:09.1]} 29... Bf7 {[%clk 0:01:58.3]} 30. Bd5 {[%clk 0:02:10]}
30... Bxd5 {[%clk 0:01:49.3]} 31. exd5 {[%clk 0:02:10.9]} 31... Kf7 {[%clk
0:01:41.9]} 32. Nc5 {[%clk 0:02:10]} 32... Nxc5 {[%clk 0:01:36.2]} 33. bxc5
{[%clk 0:02:08.7]} 33... f5 {[%clk 0:01:30.6]} 34. g4 {[%clk 0:01:59]} 34... g6
{[%clk 0:01:28]} 35. h4 {[%clk 0:01:58.7]} 35... h5 {[%clk 0:01:26.2]} 36. g5
{[%clk 0:01:54.8]} 36... Ke7 {[%clk 0:01:26]} 37. Kd3 {[%clk 0:01:53.7]} 37...
Kd7 {[%clk 0:01:25.5]} 38. Kc3 {[%clk 0:01:53]} 38... Kc7 {[%clk 0:01:25.2]} 39.
Kc2 {[%clk 0:01:53.3]} 39... Kd8 {[%clk 0:01:24.8]} 40. Kd2 {[%clk 0:01:53.2]}
40... Ke8 {[%clk 0:01:24.7]} 41. Kc3 {[%clk 0:01:53.3]} 41... Kd8 {[%clk
0:01:24.6]} 42. Kc4 {[%clk 0:01:36.6]} 42... Kd7 {[%clk 0:01:24.2]} 43. d6
{[%clk 0:01:29.2]} 43... Kc6 {[%clk 0:01:23.1]} 44. Kc3 {[%clk 0:01:27.4]} 44...
b5 {[%clk 0:01:18.5]} 45. axb6 {[%clk 0:01:12.1]} 45... a5 {[%clk 0:01:17.5]}
46. Kc4 {[%clk 0:01:12.6]} 46... e4 {[%clk 0:01:12.3]} 47. fxe4 {[%clk 0:01:08]}
47... fxe4 {[%clk 0:01:12.8]} 48. d7 {[%clk 0:01:08.8]} 48... Kxd7 {[%clk
0:01:11.9]} 49. Kd5 {[%clk 0:01:09.7]} 49... e3 {[%clk 0:01:10.7]} 50. c6+
{[%clk 0:01:10.1]} 50... Kc8 {[%clk 0:01:09]} 51. Kd6 {[%clk 0:01:08.4]} 51...
e2 {[%clk 0:01:08.8]} 52. b7+ {[%clk 0:01:08.5]} 52... Kb8 {[%clk 0:01:08.9]}
53. Kd7 {[%clk 0:01:08]} 53... e1=Q {[%clk 0:01:08.8]} 54. c7+ {[%clk
0:01:08.9]} 54... Kxb7 {[%clk 0:01:08.4]} 55. c8=Q+ {[%clk 0:01:09.8]} 55... Kb6
{[%clk 0:01:08.3]} 56. Qc6+ {[%clk 0:01:08.2]} 56... Ka7 {[%clk 0:01:08.2]} 57.
Qc5+ {[%clk 0:01:06.1]} 57... Kb7 {[%clk 0:01:04.9]} 58. Qc6+ {[%clk 0:01:03.5]}
58... Ka7 {[%clk 0:01:05.1]} 59. Qxg6 {[%clk 0:01:04.1]} 59... Qxh4 {[%clk
0:01:02.3]} 60. Qf5 {[%clk 0:00:58.7]} 60... Qd4+ {[%clk 0:00:59.8]} 61. Ke7
{[%clk 0:00:57.9]} 61... Qb4+ {[%clk 0:00:53.2]} 62. Kf7 {[%clk 0:00:56.8]}
62... a4 {[%clk 0:00:49.8]} 63. Qd7+ {[%clk 0:00:52.8]} 63... Qb7 {[%clk
0:00:46.7]} 64. Qxb7+ {[%clk 0:00:50.8]} 64... Kxb7 {[%clk 0:00:47.6]} 65. g6
{[%clk 0:00:51]} 65... a3 {[%clk 0:00:47.5]} 66. g7 {[%clk 0:00:51.3]} 66... a2
{[%clk 0:00:47.8]} 67. g8=Q {[%clk 0:00:52]} 67... a1=Q {[%clk 0:00:48.2]} 68.
Qg2+ {[%clk 0:00:52.7]} 68... Kb6 {[%clk 0:00:43.6]} 69. Qg6+ {[%clk 0:00:50.1]}
69... Kb7 {[%clk 0:00:41.9]} 70. Qxh5 {[%clk 0:00:50.3]} 70... Qa2+ {[%clk
0:00:39]} 71. Kg6 {[%clk 0:00:50]} 71... Qe6+ {[%clk 0:00:38]} 72. Kh7 {[%clk
0:00:49.3]} 72... Qe7+ {[%clk 0:00:35.8]} 73. Kh6 {[%clk 0:00:48.9]} 73... Qf8+
{[%clk 0:00:35.1]} 74. Kh7 {[%clk 0:00:49.1]} 74... Qe7+ {[%clk 0:00:35]} 75.
Kh6 {[%clk 0:00:49.3]} 75... Qf8+ {[%clk 0:00:35.1]} 76. Kh7 {[%clk 0:00:49.7]}
76... Qe7+ {[%clk 0:00:35.3]} 1/2-1/2

[Event "*** Titled Tuesday Blitz"]
[Site "Chess.com"]
[Date "2020.05.05"]
[Round "10"]
[White "dpopadic"]
[Black "AwareIdea"]
[Result "0-1"]
[WhiteElo "2352"]
[BlackElo "2555"]
[TimeControl "180+1"]
[EndTime "12:00:09 PDT"]
[Termination "AwareIdea won by resignation"]

1. e4 {[%clk 0:03:00.9]} 1... e5 {[%clk 0:02:59.7]} 2. Nf3 {[%clk 0:03:00.2]}
2... Nc6 {[%clk 0:02:59.3]} 3. Bb5 {[%clk 0:03:00]} 3... a6 {[%clk 0:02:59.7]}
4. Ba4 {[%clk 0:03:00]} 4... Nf6 {[%clk 0:02:59.3]} 5. O-O {[%clk 0:02:59.9]}
5... Nxe4 {[%clk 0:02:59.7]} 6. d4 {[%clk 0:02:59.4]} 6... b5 {[%clk 0:02:59.5]}
7. Bb3 {[%clk 0:02:59.6]} 7... d5 {[%clk 0:02:59.8]} 8. dxe5 {[%clk 0:02:59.6]}
8... Be6 {[%clk 0:02:59.6]} 9. Nbd2 {[%clk 0:02:59.6]} 9... Nc5 {[%clk
0:02:57.6]} 10. c3 {[%clk 0:02:59.4]} 10... Nxb3 {[%clk 0:02:57.4]} 11. Nxb3
{[%clk 0:02:55.1]} 11... Be7 {[%clk 0:02:55.4]} 12. h3 {[%clk 0:02:53.6]} 12...
O-O {[%clk 0:02:55]} 13. Be3 {[%clk 0:02:47.6]} 13... a5 {[%clk 0:02:53.3]} 14.
Rc1 {[%clk 0:02:40.4]} 14... a4 {[%clk 0:02:52.4]} 15. Nbd4 {[%clk 0:02:40.3]}
15... Na7 {[%clk 0:02:35.4]} 16. Qe2 {[%clk 0:02:31.1]} 16... Qd7 {[%clk
0:02:19.7]} 17. Rfd1 {[%clk 0:02:11]} 17... c5 {[%clk 0:02:17.6]} 18. Nxe6
{[%clk 0:02:08.6]} 18... fxe6 {[%clk 0:02:18.5]} 19. b3 {[%clk 0:02:07.5]} 19...
axb3 {[%clk 0:02:05.9]} 20. axb3 {[%clk 0:02:07.2]} 20... Nc6 {[%clk 0:02:05.5]}
21. Ra1 {[%clk 0:01:46.4]} 21... c4 {[%clk 0:02:01.4]} 22. Rxa8 {[%clk
0:01:37.9]} 22... Rxa8 {[%clk 0:02:02.3]} 23. bxc4 {[%clk 0:01:36.6]} 23... bxc4
{[%clk 0:02:01.8]} 24. Qxc4 {[%clk 0:01:33.2]} 24... Rf8 {[%clk 0:01:56]} 25.
Qe2 {[%clk 0:01:26.4]} 25... Na5 {[%clk 0:01:51.7]} 26. c4 {[%clk 0:01:22.8]}
26... Rxf3 {[%clk 0:01:44.1]} 27. Qxf3 {[%clk 0:01:18.8]} 27... Nxc4 {[%clk
0:01:43.3]} 28. Bd4 {[%clk 0:01:15.2]} 28... h6 {[%clk 0:01:31]} 29. Ra1 {[%clk
0:01:10.9]} 29... Qe8 {[%clk 0:01:00]} 30. Ra7 {[%clk 0:01:04.6]} 30... Bf8
{[%clk 0:00:58.6]} 31. Qb3 {[%clk 0:00:40.4]} 31... Nd2 {[%clk 0:00:45.2]} 32.
Qa2 {[%clk 0:00:24.3]} 32... Ne4 {[%clk 0:00:39.4]} 33. Ra8 {[%clk 0:00:22.9]}
33... Qc6 {[%clk 0:00:29.6]} 34. Be3 {[%clk 0:00:18.6]} 34... Kf7 {[%clk
0:00:27.5]} 35. Qb1 {[%clk 0:00:15.6]} 35... Qxa8 {[%clk 0:00:18.2]} 36. f3
{[%clk 0:00:15.5]} 36... Nc5 {[%clk 0:00:15.7]} 37. Qb5 {[%clk 0:00:14.7]} 37...
Qc8 {[%clk 0:00:14.8]} 38. Qb6 {[%clk 0:00:12.2]} 38... Nd7 {[%clk 0:00:14.5]}
39. Qa7 {[%clk 0:00:10.5]} 39... Bc5 {[%clk 0:00:14.2]} 40. Bxc5 {[%clk
0:00:07.2]} 40... Qxc5+ {[%clk 0:00:15.1]} 41. Qxc5 {[%clk 0:00:07.4]} 41...
Nxc5 {[%clk 0:00:16]} 42. Kf2 {[%clk 0:00:07.1]} 42... Nd3+ {[%clk 0:00:16.9]}
43. Ke3 {[%clk 0:00:06.9]} 43... Nxe5 {[%clk 0:00:17.8]} 44. g4 {[%clk 0:00:07]}
44... Nd7 {[%clk 0:00:18.7]} 45. f4 {[%clk 0:00:07]} 45... Kf6 {[%clk
0:00:18.6]} 46. h4 {[%clk 0:00:07.2]} 46... g5 {[%clk 0:00:18.7]} 47. fxg5+
{[%clk 0:00:07.3]} 47... hxg5 {[%clk 0:00:19.6]} 48. h5 {[%clk 0:00:07.8]} 48...
e5 {[%clk 0:00:17.6]} 49. Kd3 {[%clk 0:00:07.5]} 49... Nf8 {[%clk 0:00:16.3]}
50. Ke3 {[%clk 0:00:07]} 50... Ke6 {[%clk 0:00:16.5]} 51. Kd3 {[%clk 0:00:06.2]}
51... Nh7 {[%clk 0:00:17]} 52. Ke3 {[%clk 0:00:06.2]} 52... Nf6 {[%clk
0:00:17.9]} 53. Kf3 {[%clk 0:00:06.6]} 53... Ng8 {[%clk 0:00:18.5]} 54. Kg3
{[%clk 0:00:06.8]} 54... Nh6 {[%clk 0:00:19.4]} 55. Kf3 {[%clk 0:00:06.7]} 55...
e4+ {[%clk 0:00:19.8]} 56. Kg3 {[%clk 0:00:06.9]} 56... Ke5 {[%clk 0:00:20.7]}
57. Kh3 {[%clk 0:00:06.9]} 57... d4 {[%clk 0:00:21.6]} 58. Kg3 {[%clk
0:00:07.1]} 58... d3 {[%clk 0:00:21]} 59. Kf2 {[%clk 0:00:07.3]} 59... Kf4
{[%clk 0:00:21.9]} 0-1